[Event "19th Delhi GM Open 2022"]
[Site "Delhi"]
[Date "2022.03.22"]
[Round "1.6"]
[White "Gukesh D"]
[Black "Sudarshan Bhat"]
[Result "1-0"]
[ECO "E26"]
[WhiteElo "2614"]
[BlackElo "2100"]
[Annotator "ChessBase"]
[PlyCount "53"]
[EventDate "2022.03.22"]
[EventType "swiss"]
[EventCountry "IND"]
[SourceTitle "playchess.com"]
[Source "ChessBase"]
[SourceQuality "1"]
[TimeControl "5400+30"]

1. d4 {[%emt 0:00:30]} Nf6 {[%emt 0:00:30]} 2. c4 {[%emt 0:00:27]} e6 {[%emt 0:00:23]} 3. Nc3 {[%emt 0:00:42]} Bb4 {[%emt 0:00:29]} 4. a3 {[%emt 0:01:27]} Bxc3+ {[%emt 0:00:34]} 5. bxc3 {[%emt 0:00:07]} c5 {[%emt 0:00:35]} 6. e3 {[%emt 0:00:22]} Nc6 {[%emt 0:00:34]} 7. Bd3 {[%emt 0:00:10]} b6 {[%emt 0:00:48]} 8. Ne2 {[%emt 0:01:19]} Ba6 {[%emt 0:00:32]} 9. e4 {[%emt 0:06:35]} e5 {[%emt 0:17:09]} 10. f4 {[%emt 0:03:52]} O-O {[%emt 0:13:45]} 11. fxe5 {[%emt 0:02:37]} Ne8 {[%emt 0:00:41]} 12. O-O {[%emt 0:00:51]} d6 {[%emt 0:01:20]} 13. exd6 {[%emt 0:32:38]} Nxd6 {[%emt 0:00:54]} 14. e5 {[%emt 0:01:09]} Nxc4 {[%emt 0:03:22]} 15. Ng3 {[%emt 0:00:56]} Nxd4 {[%emt 0:17:56]} 16. Qh5 {[%emt 0:02:45]} g6 {[%emt 0:04:20]} 17. Qh3 {[%emt 0:01:55]} Nb3 {[%emt 0:19:02]} 18. Ne4 {[%emt 0:01:47]} f5 {[%emt 0:03:42]} 19. exf6 {[%emt 0:01:36]} Nxa1 {[%emt 0:06:47]} 20. Ng5 {[%emt 0:02:51]} h5 {[%emt 0:03:54]} 21. f7+ {[%emt 0:01:32]} Rxf7 {[%emt 0:02:05]} 22. Nxf7 {[%emt 0:01:04]} Qd5 {[%emt 0:01:08]} 23. Qg3 {[%emt 0:00:25]} Ne5 {[%emt 0:00:47]} 24. Nxe5 {[%emt 0:01:52]} Bxd3 {[%emt 0:00:18]} 25. Nxd3 {[%emt 0:00:07]} Kh7 {[%emt 0:00:50]} 26. Qc7+ {[%emt 0:00:20]} Kh8 {[%emt 0:00:32]} 27. Rf7 {[%emt 0:00:24]} 1-0

[Event "19th Delhi GM Open 2022"]
[Site "Delhi"]
[Date "2022.03.22"]
[Round "1.7"]
[White "Dhruv Khosla"]
[Black "Lalith Babu M R"]
[Result "0-1"]
[ECO "C81"]
[WhiteElo "2072"]
[BlackElo "2563"]
[Annotator "ChessBase"]
[PlyCount "76"]
[EventDate "2022.03.22"]
[EventType "swiss"]
[EventCountry "IND"]
[SourceTitle "playchess.com"]
[Source "ChessBase"]
[SourceQuality "1"]
[TimeControl "5400+30"]

1. e4 {[%emt 0:00:04]} e5 {[%emt 0:00:10]} 2. Nf3 {[%emt 0:00:06]} Nc6 {[%emt 0:00:05]} 3. Bb5 {[%emt 0:00:06]} a6 {[%emt 0:00:05]} 4. Ba4 {[%emt 0:00:04]} Nf6 {[%emt 0:00:29]} 5. O-O {[%emt 0:00:07]} Nxe4 {[%emt 0:00:36]} 6. d4 {[%emt 0:00:28]} b5 {[%emt 0:00:04]} 7. Bb3 {[%emt 0:00:18]} d5 {[%emt 0:00:04]} 8. dxe5 {[%emt 0:00:13]} Be6 {[%emt 0:00:04]} 9. Qe2 {[%emt 0:00:12]} Be7 {[%emt 0:03:57]} 10. Rd1 {[%emt 0:00:57]} Na5 {[%emt 0:00:23]} 11. Nbd2 {[%emt 0:09:06]} Nc5 {[%emt 0:05:20]} 12. Nd4 {[%emt 0:08:53]} O-O {[%emt 0:02:30]} 13. c4 {[%emt 0:06:04]} bxc4 {[%emt 0:04:06]} 14. Nxc4 {[%emt 0:03:40]} Nxc4 {[%emt 0:12:01]} 15. Bxc4 {[%emt 0:01:06]} Qe8 {[%emt 0:00:03]} 16. Bb3 {[%emt 0:02:16]} Nxb3 {[%emt 0:01:00]} 17. axb3 {[%emt 0:01:04]} Bc8 {[%emt 0:02:04]} 18. Bf4 {[%emt 0:04:20]} c5 {[%emt 0:01:22]} 19. Nb5 {[%emt 0:01:12]} Qc6 {[%emt 0:00:10]} 20. Nd6 {[%emt 0:00:33]} Be6 {[%emt 0:00:04]} 21. Qf3 {[%emt 0:01:38]} f6 {[%emt 0:02:45]} 22. Nc4 {[%emt 0:03:15]} Rac8 {[%emt 0:04:09]} 23. Na5 {[%emt 0:04:07]} Qb5 {[%emt 0:02:23]} 24. Qg3 {[%emt 0:01:22]} Bd8 {[%emt 0:00:43]} 25. Qc3 {[%emt 0:13:06]} Bc7 {[%emt 0:10:41]} 26. h3 {[%emt 0:01:36]} d4 {[%emt 0:01:38]} 27. Qe1 {[%emt 0:01:47]} Rce8 {[%emt 0:00:10]} 28. Rdc1 {[%emt 0:14:08]} fxe5 {[%emt 0:04:04]} 29. Bd2 {[%emt 0:02:30]} Rf6 {[%emt 0:02:32]} 30. b4 {[%emt 0:02:01]} Rg6 {[%emt 0:00:35]} 31. Rxc5 {[%emt 0:00:57]} Qd7 {[%emt 0:00:02]} 32. Qc1 {[%emt 0:12:05]} Bd6 {[%emt 0:00:07]} 33. Ra3 {[%emt 0:02:42]} Bxc5 {[%emt 0:01:05]} 34. bxc5 {[%emt 0:00:12]} Bd5 {[%emt 0:00:54]} 35. Rg3 {[%emt 0:04:03]} Rxg3 {[%emt 0:00:05]} 36. fxg3 {[%emt 0:00:01]} Qb5 {[%emt 0:00:06]} 37. Be1 {[%emt 0:01:55]} e4 {[%emt 0:00:22]} 38. c6 {[%emt 0:00:44]} e3 {[%emt 0:00:05]} 0-1

[Event "19th Delhi GM Open 2022"]
[Site "Delhi"]
[Date "2022.03.22"]
[Round "1.8"]
[White "Visakh N R"]
[Black "Kavinda, Akila"]
[Result "1-0"]
[ECO "A40"]
[WhiteElo "2522"]
[BlackElo "2068"]
[Annotator "ChessBase"]
[PlyCount "63"]
[EventDate "2022.03.22"]
[EventType "swiss"]
[EventCountry "IND"]
[SourceTitle "playchess.com"]
[Source "ChessBase"]
[SourceQuality "1"]
[TimeControl "5400+30"]

1. d4 {[%emt 0:00:13]} Nf6 {[%emt 0:00:18]} 2. c4 {[%emt 0:00:07]} e6 {[%emt 0:00:21]} 3. g3 {[%emt 0:00:07]} Nc6 {[%emt 0:00:09]} 4. Bg2 {[%emt 0:00:34]} Bb4+ {[%emt 0:00:28]} 5. Bd2 {[%emt 0:00:12]} Qe7 {[%emt 0:02:00]} 6. e3 {[%emt 0:03:24]} O-O {[%emt 0:02:14]} 7. Ne2 {[%emt 0:00:03]} a5 {[%emt 0:01:56]} 8. Nbc3 {[%emt 0:00:19]} d6 {[%emt 0:03:25]} 9. O-O {[%emt 0:01:36]} Nb8 {[%emt 0:21:06]} 10. Nf4 {[%emt 0:03:28]} Bxc3 {[%emt 0:15:35]} 11. Bxc3 {[%emt 0:00:02]} c6 {[%emt 0:00:34]} 12. Nd3 {[%emt 0:00:50]} Nbd7 {[%emt 0:10:49]} 13. Qd2 {[%emt 0:08:19]} a4 {[%emt 0:02:43]} 14. Rfe1 {[%emt 0:00:24]} e5 {[%emt 0:05:50]} 15. f4 {[%emt 0:10:46]} e4 {[%emt 0:05:30]} 16. Nf2 {[%emt 0:02:45]} h5 {[%emt 0:09:37]} 17. b3 {[%emt 0:06:07]} Re8 {[%emt 0:02:44]} 18. Rac1 {[%emt 0:06:04]} axb3 {[%emt 0:09:58]} 19. axb3 {[%emt 0:00:22]} b6 {[%emt 0:01:12]} 20. h3 {[%emt 0:06:59]} Bb7 {[%emt 0:03:16]} 21. g4 {[%emt 0:00:27]} hxg4 {[%emt 0:00:21]} 22. hxg4 {[%emt 0:00:02]} Ra3 {[%emt 0:00:40]} 23. g5 {[%emt 0:01:21]} Nh5 {[%emt 0:00:18]} 24. Nxe4 {[%emt 0:00:38]} Rea8 {[%emt 0:00:39]} 25. Qd1 {[%emt 0:09:56]} d5 {[%emt 0:00:42]} 26. Qxh5 {[%emt 0:03:48]} dxe4 {[%emt 0:00:04]} 27. Re2 {[%emt 0:00:08]} Rxb3 {[%emt 0:00:37]} 28. Bf1 {[%emt 0:00:47]} f5 {[%emt 0:00:49]} 29. Rh2 {[%emt 0:00:02]} Nf8 {[%emt 0:00:31]} 30. g6 {[%emt 0:00:08]} Nxg6 {[%emt 0:00:23]} 31. Qxg6 {[%emt 0:00:03]} Raa3 {[%emt 0:00:13]} 32. Qh7+ {[%emt 0:00:23]} 1-0

[Event "19th Delhi GM Open 2022"]
[Site "Delhi"]
[Date "2022.03.22"]
[Round "1.9"]
[White "Santu, Mondal"]
[Black "Deepan Chakkravarthy J."]
[Result "0-1"]
[ECO "A49"]
[WhiteElo "2063"]
[BlackElo "2520"]
[Annotator "ChessBase"]
[PlyCount "84"]
[EventDate "2022.03.22"]
[EventType "swiss"]
[EventCountry "IND"]
[SourceTitle "playchess.com"]
[Source "ChessBase"]
[SourceQuality "1"]
[TimeControl "5400+30"]

1. d4 {[%emt 0:00:38]} Nf6 {[%emt 0:00:08]} 2. Nf3 {[%emt 0:00:37]} g6 {[%emt 0:00:09]} 3. g3 {[%emt 0:01:01]} Bg7 {[%emt 0:00:05]} 4. Bg2 {[%emt 0:00:04]} O-O {[%emt 0:00:03]} 5. O-O {[%emt 0:00:37]} b6 {[%emt 0:02:26]} 6. Ne5 {[%emt 0:02:59]} c6 {[%emt 0:01:00]} 7. c4 {[%emt 0:01:13]} Bb7 {[%emt 0:00:22]} 8. Nc3 {[%emt 0:04:40]} d6 {[%emt 0:00:15]} 9. Nd3 {[%emt 0:02:16]} Qc7 {[%emt 0:03:12]} 10. e4 {[%emt 0:03:27]} Nbd7 {[%emt 0:00:58]} 11. Be3 {[%emt 0:00:34]} e5 {[%emt 0:00:56]} 12. dxe5 {[%emt 0:16:38]} dxe5 {[%emt 0:00:36]} 13. h3 {[%emt 0:03:55]} Rfd8 {[%emt 0:04:37]} 14. Qc2 {[%emt 0:08:29]} Nf8 {[%emt 0:00:28]} 15. c5 {[%emt 0:00:07]} Ne6 {[%emt 0:01:09]} 16. Ne2 {[%emt 0:03:33]} Ba6 {[%emt 0:02:02]} 17. Rfd1 {[%emt 0:13:30]} Bxd3 {[%emt 0:01:06]} 18. Rxd3 {[%emt 0:00:51]} Rxd3 {[%emt 0:00:05]} 19. Qxd3 {[%emt 0:00:05]} bxc5 {[%emt 0:00:07]} 20. Rc1 {[%emt 0:00:24]} Nd7 {[%emt 0:00:09]} 21. h4 {[%emt 0:06:10]} Bf8 {[%emt 0:00:55]} 22. Bh3 {[%emt 0:01:22]} Nd4 {[%emt 0:00:18]} 23. Nc3 {[%emt 0:03:30]} Nb6 {[%emt 0:01:30]} 24. Qa6 {[%emt 0:02:35]} Rb8 {[%emt 0:05:10]} 25. b3 {[%emt 0:06:30]} h5 {[%emt 0:06:43]} 26. Kh2 {[%emt 0:07:48]} Kg7 {[%emt 0:01:14]} 27. Nd1 {[%emt 0:00:46]} c4 {[%emt 0:03:42]} 28. bxc4 {[%emt 0:01:19]} Nd7 {[%emt 0:00:01]} 29. Bxd7 {[%emt 0:02:00]} Qxd7 {[%emt 0:00:02]} 30. c5 {[%emt 0:04:48]} Rb5 {[%emt 0:01:19]} 31. Qa3 {[%emt 0:01:41]} Nf3+ {[%emt 0:09:25]} 32. Kg2 {[%emt 0:00:10]} Ne1+ {[%emt 0:00:04]} 33. Kh2 {[%emt 0:00:42]} Qg4 {[%emt 0:12:12]} 34. Nc3 {[%emt 0:01:54]} Nf3+ {[%emt 0:00:05]} 35. Kg2 {[%emt 0:00:08]} Rb7 {[%emt 0:00:03]} 36. Qa6 {[%emt 0:00:55]} Nxh4+ {[%emt 0:02:59]} 37. Kh2 {[%emt 0:00:23]} Nf3+ {[%emt 0:01:10]} 38. Kg2 {[%emt 0:00:04]} Rb4 {[%emt 0:10:09]} 39. Qxc6 {[%emt 0:00:34]} h4 {[%emt 0:01:41]} 40. Nd5 {[%emt 0:01:01]} Rb2 {[%emt 0:00:08]} 41. Qf6+ {[%emt 0:00:27]} Kg8 {[%emt 0:00:02]} 42. Kf1 {[%emt 0:00:34]} Qh3# 0-1

[Event "19th Delhi GM Open 2022"]
[Site "Delhi"]
[Date "2022.03.22"]
[Round "1.10"]
[White "Iniyan, P."]
[Black "Mahindrakar Indrajeet"]
[Result "1-0"]
[ECO "C18"]
[WhiteElo "2516"]
[BlackElo "2059"]
[Annotator "ChessBase"]
[PlyCount "73"]
[EventDate "2022.03.22"]
[EventType "swiss"]
[EventCountry "IND"]
[SourceTitle "playchess.com"]
[Source "ChessBase"]
[SourceQuality "1"]
[TimeControl "5400+30"]

1. e4 {[%emt 0:00:21]} e6 {[%emt 0:03:02]} 2. d4 {[%emt 0:00:24]} d5 {[%emt 0:00:15]} 3. Nc3 {[%emt 0:00:06]} Bb4 {[%emt 0:06:22]} 4. e5 {[%emt 0:01:09]} c5 {[%emt 0:00:20]} 5. a3 {[%emt 0:00:06]} Bxc3+ {[%emt 0:01:23]} 6. bxc3 {[%emt 0:05:36]} Qc7 {[%emt 0:00:17]} 7. h4 {[%emt 0:00:30]} Ne7 {[%emt 0:10:45]} 8. h5 {[%emt 0:01:00]} h6 {[%emt 0:02:39]} 9. Nf3 {[%emt 0:00:27]} b6 {[%emt 0:08:21]} 10. Bb5+ {[%emt 0:02:22]} Nd7 {[%emt 0:07:54]} 11. a4 {[%emt 0:00:32]} Nc6 {[%emt 0:04:35]} 12. Rh4 {[%emt 0:01:26]} cxd4 {[%emt 0:21:43]} 13. cxd4 {[%emt 0:04:00]} Nb4 {[%emt 0:03:05]} 14. Rb1 {[%emt 0:00:29]} Na2 {[%emt 0:01:49]} 15. Bd2 {[%emt 0:00:53]} Nc3 {[%emt 0:00:51]} 16. Bxc3 {[%emt 0:00:08]} Qxc3+ {[%emt 0:00:04]} 17. Kf1 {[%emt 0:01:01]} Bb7 {[%emt 0:04:51]} 18. Rb3 {[%emt 0:03:07]} Qc7 {[%emt 0:03:05]} 19. Rg4 {[%emt 0:00:04]} Rg8 {[%emt 0:12:18]} 20. Kg1 {[%emt 0:00:49]} Rc8 {[%emt 0:01:48]} 21. Ne1 {[%emt 0:02:18]} Bc6 {[%emt 0:02:20]} 22. Rc3 {[%emt 0:00:44]} Nb8 {[%emt 0:01:25]} 23. Rcg3 {[%emt 0:00:53]} Bxb5 {[%emt 0:00:54]} 24. axb5 {[%emt 0:00:08]} Qc4 {[%emt 0:00:42]} 25. Rxg7 {[%emt 0:00:31]} Rxg7 {[%emt 0:00:35]} 26. Rxg7 {[%emt 0:00:08]} Qxb5 {[%emt 0:00:14]} 27. Qf3 {[%emt 0:00:06]} Kd8 {[%emt 0:01:20]} 28. Qxf7 {[%emt 0:00:14]} Nd7 {[%emt 0:00:18]} 29. Qe7+ {[%emt 0:00:09]} Kc7 {[%emt 0:00:06]} 30. Qd6+ {[%emt 0:00:04]} Kb7 {[%emt 0:00:57]} 31. Rxd7+ {[%emt 0:00:21]} Ka6 {[%emt 0:00:19]} 32. Nd3 {[%emt 0:00:18]} Rc4 {[%emt 0:00:40]} 33. Qe7 {[%emt 0:00:24]} Qb1+ {[%emt 0:00:40]} 34. Kh2 {[%emt 0:00:06]} Qd1 {[%emt 0:00:29]} 35. Rxa7+ {[%emt 0:00:40]} Kb5 {[%emt 0:00:01]} 36. Qe8+ {[%emt 0:00:10]} Rc6 {[%emt 0:00:08]} 37. Ra2 {[%emt 0:00:29]} 1-0

[Event "19th Delhi GM Open 2022"]
[Site "Delhi"]
[Date "2022.03.22"]
[Round "1.11"]
[White "Sri Sai Baswanth P"]
[Black "Mosadeghpour, Masoud"]
[Result "0-1"]
[ECO "D76"]
[WhiteElo "2057"]
[BlackElo "2511"]
[Annotator "ChessBase"]
[PlyCount "89"]
[EventDate "2022.03.22"]
[EventType "swiss"]
[EventCountry "IND"]
[SourceTitle "playchess.com"]
[Source "ChessBase"]
[SourceQuality "1"]
[TimeControl "5400+30"]

1. c4 {[%emt 0:00:11]} g6 {[%emt 0:01:25]} 2. g3 {[%emt 0:00:28]} Bg7 {[%emt 0:00:16]} 3. Bg2 {[%emt 0:00:10]} Nf6 {[%emt 0:01:14]} 4. d4 {[%emt 0:00:30]} d5 {[%emt 0:01:30]} 5. cxd5 {[%emt 0:00:06]} Nxd5 {[%emt 0:00:05]} 6. Nf3 {[%emt 0:00:08]} O-O {[%emt 0:00:40]} 7. O-O {[%emt 0:00:08]} Nb6 {[%emt 0:00:10]} 8. Nc3 {[%emt 0:01:14]} Nc6 {[%emt 0:00:14]} 9. d5 {[%emt 0:00:40]} Na5 {[%emt 0:00:14]} 10. e4 {[%emt 0:04:20]} c6 {[%emt 0:00:26]} 11. Qe1 {[%emt 0:04:41]} cxd5 {[%emt 0:03:02]} 12. exd5 {[%emt 0:01:33]} Nxd5 {[%emt 0:06:59]} 13. Nxd5 {[%emt 0:00:16]} Qxd5 {[%emt 0:00:08]} 14. Qxe7 {[%emt 0:00:47]} Bg4 {[%emt 0:06:02]} 15. Ng5 {[%emt 0:15:18]} Qd7 {[%emt 0:28:11]} 16. Qxd7 {[%emt 0:07:22]} Bxd7 {[%emt 0:00:03]} 17. Bd2 {[%emt 0:00:05]} Nc6 {[%emt 0:01:31]} 18. Rac1 {[%emt 0:00:44]} Rad8 {[%emt 0:07:24]} 19. Be3 {[%emt 0:09:32]} h6 {[%emt 0:10:58]} 20. Ne4 {[%emt 0:00:51]} b6 {[%emt 0:04:12]} 21. Rfd1 {[%emt 0:00:41]} Bxb2 {[%emt 0:11:53]} 22. Bxh6 {[%emt 0:09:11]} Bf5 {[%emt 0:10:53]} 23. Nf6+ {[%emt 0:08:37]} Bxf6 {[%emt 0:00:58]} 24. Bxf8 {[%emt 0:00:05]} Nd4 {[%emt 0:00:21]} 25. Bh6 {[%emt 0:02:20]} Ne2+ {[%emt 0:00:15]} 26. Kf1 {[%emt 0:00:40]} Nxc1 {[%emt 0:00:10]} 27. Rxd8+ {[%emt 0:01:06]} Bxd8 {[%emt 0:00:06]} 28. Bxc1 {[%emt 0:00:04]} Be6 {[%emt 0:00:59]} 29. a3 {[%emt 0:00:26]} Be7 {[%emt 0:00:36]} 30. Bb2 {[%emt 0:00:48]} Bc5 {[%emt 0:01:15]} 31. Bf3 {[%emt 0:01:40]} Bc4+ {[%emt 0:00:29]} 32. Be2 {[%emt 0:00:21]} Bxe2+ {[%emt 0:01:00]} 33. Kxe2 {[%emt 0:00:05]} b5 {[%emt 0:00:06]} 34. f4 {[%emt 0:00:33]} a5 {[%emt 0:00:36]} 35. g4 {[%emt 0:01:05]} a4 {[%emt 0:00:31]} 36. Kd3 {[%emt 0:00:30]} f5 {[%emt 0:00:38]} 37. h3 {[%emt 0:01:05]} Kf7 {[%emt 0:00:15]} 38. g5 {[%emt 0:01:59]} Ke6 {[%emt 0:00:47]} 39. h4 {[%emt 0:00:09]} Kd5 {[%emt 0:00:58]} 40. Ke2 {[%emt 0:03:28]} b4 {[%emt 0:01:18]} 41. axb4 {[%emt 0:00:11]} Bxb4 {[%emt 0:00:01]} 42. Kf3 {[%emt 0:00:17]} a3 {[%emt 0:00:49]} 43. Ba1 {[%emt 0:03:00]} Bd2 {[%emt 0:01:04]} 44. h5 {[%emt 0:05:42]} gxh5 {[%emt 0:00:05]} 45. g6 {[%emt 0:00:15]} 0-1

[Event "19th Delhi GM Open 2022"]
[Site "Delhi"]
[Date "2022.03.22"]
[Round "1.12"]
[White "Mitrabha, Guha"]
[Black "Purushothaman, Thirumalai"]
[Result "1-0"]
[ECO "D78"]
[WhiteElo "2510"]
[BlackElo "2055"]
[Annotator "ChessBase"]
[PlyCount "93"]
[EventDate "2022.03.22"]
[EventType "swiss"]
[EventCountry "IND"]
[SourceTitle "playchess.com"]
[Source "ChessBase"]
[SourceQuality "1"]
[TimeControl "5400+30"]

1. d4 {[%emt 0:00:54]} Nf6 {[%emt 0:00:53]} 2. c4 {[%emt 0:00:16]} g6 {[%emt 0:00:08]} 3. g3 {[%emt 0:00:03]} Bg7 {[%emt 0:00:20]} 4. Bg2 {[%emt 0:00:04]} d5 {[%emt 0:00:41]} 5. Nf3 {[%emt 0:00:24]} O-O {[%emt 0:00:11]} 6. O-O {[%emt 0:00:04]} c6 {[%emt 0:00:07]} 7. Qb3 {[%emt 0:00:10]} dxc4 {[%emt 0:05:07]} 8. Qxc4 {[%emt 0:00:28]} Nbd7 {[%emt 0:00:37]} 9. Nc3 {[%emt 0:00:18]} Nb6 {[%emt 0:00:31]} 10. Qd3 {[%emt 0:00:18]} Be6 {[%emt 0:01:29]} 11. Rd1 {[%emt 0:00:12]} Bc4 {[%emt 0:00:39]} 12. Qc2 {[%emt 0:00:06]} Nfd5 {[%emt 0:00:39]} 13. e4 {[%emt 0:00:56]} Nc7 {[%emt 0:02:24]} 14. Be3 {[%emt 0:00:17]} f5 {[%emt 0:01:39]} 15. Bf4 {[%emt 0:02:38]} fxe4 {[%emt 0:02:51]} 16. Nxe4 {[%emt 0:00:04]} Rxf4 {[%emt 0:05:23]} 17. gxf4 {[%emt 0:00:09]} Ne6 {[%emt 0:00:20]} 18. f5 {[%emt 0:08:37]} Nf4 {[%emt 0:00:22]} 19. fxg6 {[%emt 0:01:51]} hxg6 {[%emt 0:00:19]} 20. Ne5 {[%emt 0:07:39]} Bd5 {[%emt 0:06:24]} 21. Ng4 {[%emt 0:12:05]} Qd7 {[%emt 0:02:34]} 22. Ne3 {[%emt 0:01:17]} Rf8 {[%emt 0:00:38]} 23. a4 {[%emt 0:01:30]} Nh3+ {[%emt 0:01:14]} 24. Bxh3 {[%emt 0:00:43]} Qxh3 {[%emt 0:00:12]} 25. Ra3 {[%emt 0:00:35]} Qh4 {[%emt 0:03:24]} 26. Nxd5 {[%emt 0:00:55]} Nxd5 {[%emt 0:00:19]} 27. Rg3 {[%emt 0:00:05]} Rf4 {[%emt 0:00:34]} 28. Ng5 {[%emt 0:01:09]} Rf5 {[%emt 0:01:38]} 29. Ne6 {[%emt 0:00:22]} Qh5 {[%emt 0:01:14]} 30. Re1 {[%emt 0:00:35]} Bf6 {[%emt 0:00:44]} 31. Qb3 {[%emt 0:01:13]} Kf7 {[%emt 0:01:20]} 32. Re4 {[%emt 0:01:18]} Qh6 {[%emt 0:08:54]} 33. f4 {[%emt 0:30:28]} b6 {[%emt 0:23:42]} 34. a5 {[%emt 0:01:48]} Rh5 {[%emt 0:07:56]} 35. h3 {[%emt 0:00:48]} Rf5 {[%emt 0:04:33]} 36. Kh2 {[%emt 0:00:52]} Qh8 {[%emt 0:04:53]} 37. axb6 {[%emt 0:03:26]} axb6 {[%emt 0:00:22]} 38. Qd1 {[%emt 0:00:24]} Bh4 {[%emt 0:01:54]} 39. Rg2 {[%emt 0:01:36]} Rh5 {[%emt 0:01:38]} 40. Qg4 {[%emt 0:00:19]} Rh6 {[%emt 0:00:26]} 41. Ng5+ {[%emt 0:00:30]} Bxg5 {[%emt 0:02:20]} 42. fxg5 Qb8+ {[%emt 0:00:12]} 43. Kh1 {[%emt 0:00:57]} Rh8 {[%emt 0:00:27]} 44. Rf2+ {[%emt 0:00:24]} Kg7 {[%emt 0:00:19]} 45. Qf3 {[%emt 0:01:14]} Rh7 {[%emt 0:01:12]} 46. Kg2 {[%emt 0:02:02]} Kg8 {[%emt 0:01:54]} 47. Re6 {[%emt 0:00:40]} 1-0

[Event "19th Delhi GM Open 2022"]
[Site "Delhi"]
[Date "2022.03.22"]
[Round "1.13"]
[White "Hemanth Raam"]
[Black "Arjun Kalyan"]
[Result "0-1"]
[ECO "B90"]
[WhiteElo "2043"]
[BlackElo "2506"]
[Annotator "ChessBase"]
[PlyCount "72"]
[EventDate "2022.03.22"]
[EventType "swiss"]
[EventCountry "IND"]
[SourceTitle "playchess.com"]
[Source "ChessBase"]
[SourceQuality "1"]
[TimeControl "5400+30"]

1. e4 {[%emt 0:00:03]} c5 {[%emt 0:00:08]} 2. Nf3 {[%emt 0:00:06]} d6 {[%emt 0:00:04]} 3. d4 {[%emt 0:00:05]} cxd4 {[%emt 0:00:05]} 4. Nxd4 {[%emt 0:00:04]} Nf6 {[%emt 0:00:05]} 5. Nc3 {[%emt 0:00:06]} a6 {[%emt 0:00:14]} 6. Nb3 {[%emt 0:03:33]} e6 {[%emt 0:02:11]} 7. Be3 {[%emt 0:03:30]} b5 {[%emt 0:02:31]} 8. a4 {[%emt 0:02:27]} b4 {[%emt 0:01:07]} 9. Na2 {[%emt 0:00:04]} Nc6 {[%emt 0:03:25]} 10. Bd3 {[%emt 0:01:14]} Bb7 {[%emt 0:02:50]} 11. O-O {[%emt 0:07:02]} d5 {[%emt 0:03:59]} 12. exd5 {[%emt 0:14:08]} Qxd5 {[%emt 0:03:25]} 13. c4 {[%emt 0:00:52]} Qd7 {[%emt 0:15:28]} 14. Qc2 {[%emt 0:14:05]} Qc7 {[%emt 0:05:51]} 15. Be2 {[%emt 0:07:24]} Bd6 {[%emt 0:01:54]} 16. h3 {[%emt 0:00:05]} O-O {[%emt 0:00:18]} 17. Rfd1 {[%emt 0:01:32]} Rfd8 {[%emt 0:06:30]} 18. c5 {[%emt 0:08:03]} Be7 {[%emt 0:05:16]} 19. Bf3 {[%emt 0:06:42]} a5 {[%emt 0:01:34]} 20. Rxd8+ {[%emt 0:01:42]} Nxd8 {[%emt 0:04:15]} 21. Bxb7 {[%emt 0:01:04]} Qxb7 {[%emt 0:02:16]} 22. Nac1 {[%emt 0:01:54]} Nd5 {[%emt 0:00:58]} 23. Qe2 {[%emt 0:04:07]} Nc6 {[%emt 0:05:28]} 24. Nd3 {[%emt 0:02:44]} Bf6 {[%emt 0:05:46]} 25. Rc1 {[%emt 0:05:56]} Rd8 {[%emt 0:01:51]} 26. Rc2 {[%emt 0:02:01]} Qd7 {[%emt 0:04:15]} 27. Rd2 {[%emt 0:04:24]} e5 {[%emt 0:01:33]} 28. Ne1 {[%emt 0:01:13]} e4 {[%emt 0:04:19]} 29. Nc2 {[%emt 0:04:30]} Bxb2 {[%emt 0:02:58]} 30. Bg5 {[%emt 0:02:50]} f6 {[%emt 0:00:10]} 31. Qxe4 {[%emt 0:01:05]} fxg5 {[%emt 0:01:51]} 32. Ne3 {[%emt 0:00:01]} Bd4 {[%emt 0:05:05]} 33. Nxd4 {[%emt 0:00:30]} Nc3 {[%emt 0:00:01]} 34. Nxc6 {[%emt 0:01:45]} Nxe4 {[%emt 0:00:02]} 35. Rxd7 {[%emt 0:00:25]} Rxd7 {[%emt 0:00:01]} 36. Nxa5 {[%emt 0:00:06]} Nxc5 {[%emt 0:00:06]} 0-1

[Event "19th Delhi GM Open 2022"]
[Site "Delhi"]
[Date "2022.03.22"]
[Round "1.14"]
[White "Harsha Bharathakoti"]
[Black "Shiva Pavan Teja Sharma U"]
[Result "1-0"]
[ECO "A05"]
[WhiteElo "2499"]
[BlackElo "2022"]
[Annotator "ChessBase"]
[PlyCount "77"]
[EventDate "2022.03.22"]
[EventType "swiss"]
[EventCountry "IND"]
[SourceTitle "playchess.com"]
[Source "ChessBase"]
[SourceQuality "1"]
[TimeControl "5400+30"]

1. Nf3 {[%emt 0:00:38]} Nf6 {[%emt 0:00:17]} 2. g3 {[%emt 0:00:32]} b6 {[%emt 0:00:40]} 3. Bg2 {[%emt 0:00:19]} Bb7 {[%emt 0:00:17]} 4. c4 {[%emt 0:01:37]} c5 {[%emt 0:00:38]} 5. Nc3 {[%emt 0:00:23]} e6 {[%emt 0:01:23]} 6. O-O {[%emt 0:00:37]} a6 {[%emt 0:03:00]} 7. d4 {[%emt 0:02:19]} cxd4 {[%emt 0:00:09]} 8. Qxd4 {[%emt 0:00:03]} d6 {[%emt 0:00:42]} 9. Rd1 {[%emt 0:00:18]} Be7 {[%emt 0:04:59]} 10. Ng5 {[%emt 0:06:12]} Bxg2 {[%emt 0:01:42]} 11. Kxg2 {[%emt 0:00:03]} Nc6 {[%emt 0:00:20]} 12. Qf4 {[%emt 0:00:04]} O-O {[%emt 0:00:39]} 13. Nce4 {[%emt 0:06:08]} Ne8 {[%emt 0:03:59]} 14. b3 {[%emt 0:03:55]} Ra7 {[%emt 0:00:36]} 15. Bb2 {[%emt 0:05:40]} Rd7 {[%emt 0:07:23]} 16. Nf3 {[%emt 0:09:55]} h6 {[%emt 0:02:22]} 17. h4 {[%emt 0:08:50]} f5 {[%emt 0:01:10]} 18. Nc3 {[%emt 0:01:13]} Bf6 {[%emt 0:12:18]} 19. Qe3 {[%emt 0:02:24]} e5 {[%emt 0:05:10]} 20. Nd5 {[%emt 0:02:54]} f4 {[%emt 0:08:19]} 21. Qe4 {[%emt 0:07:32]} Ne7 {[%emt 0:02:31]} 22. gxf4 exf4 {[%emt 0:03:56]} 23. Qe6+ {[%emt 0:16:54]} Kh8 {[%emt 0:01:09]} 24. Bxf6 {[%emt 0:02:49]} Nxf6 {[%emt 0:00:35]} 25. Nxf4 {[%emt 0:00:05]} Qe8 {[%emt 0:06:13]} 26. Rxd6 {[%emt 0:03:32]} Ng6 {[%emt 0:00:51]} 27. Nxg6+ {[%emt 0:03:11]} Qxg6+ {[%emt 0:00:07]} 28. Kf1 {[%emt 0:00:23]} Rxd6 {[%emt 0:01:28]} 29. Qxd6 {[%emt 0:00:02]} Re8 {[%emt 0:00:19]} 30. Rd1 {[%emt 0:06:48]} Qg4 {[%emt 0:03:35]} 31. Qg3 {[%emt 0:03:15]} Qe4 {[%emt 0:01:12]} 32. Nd4 {[%emt 0:00:03]} Nh5 {[%emt 0:02:44]} 33. Qf3 {[%emt 0:00:11]} Qxh4 {[%emt 0:01:14]} 34. Nf5 {[%emt 0:01:12]} Qg5 {[%emt 0:00:51]} 35. Nd6 {[%emt 0:00:20]} Re7 {[%emt 0:03:21]} 36. Nf7+ {[%emt 0:00:08]} Rxf7 {[%emt 0:00:06]} 37. Qxf7 {[%emt 0:00:02]} Nf4 {[%emt 0:00:47]} 38. Qe8+ {[%emt 0:00:04]} Kh7 {[%emt 0:00:25]} 39. Qe4+ {[%emt 0:00:03]} 1-0